bitfinex/quotes_BTCUSD_20250607
["timestamp","ask_amount","ask_price","bid_price","bid_amount"]
[1749301706693,1.84829452,105460.0,105450.0,0.59168261]
[1749301706916,1.84548168,105460.0,105450.0,0.59168261]
[1749301707162,1.85659665,105460.0,105450.0,0.59168261]
[1749301707461,1.84548141,105460.0,105450.0,0.59168261]
[1749301707716,1.85659593,105460.0,105450.0,0.59168261]
[1749301707955,1.84430065,105460.0,105450.0,0.37896]
[1749301708168,1.84430119,105460.0,105450.0,0.37896]
[1749301708377,1.81984873,105460.0,105450.0,0.57810641]
[1749301708587,1.83763243,105460.0,105450.0,0.37896]
[1749301708800,1.81984873,105460.0,105450.0,0.37896]
[1749301709014,1.84430196,105460.0,105450.0,0.37896]
[1749301709216,1.83763305,105460.0,105450.0,0.38844316]
[1749301709838,1.82815088,105460.0,105450.0,0.5781065]
[1749301710053,1.81703568,105460.0,105450.0,0.58758948]
[1749301710258,1.31206656,105460.0,105450.0,0.58758948]
[1749301710733,1.31206656,105460.0,105450.0,0.59707237]
[1749301710952,1.33651865,105460.0,105450.0,0.20862948]
[1749301711171,1.33651865,105460.0,105450.0,0.58758948]
[1749301711447,1.31873536,105460.0,105450.0,0.58758948]
[1749301711864,1.31206656,105460.0,105450.0,0.58758948]
[1749301712313,1.3203678,105460.0,105450.0,0.37896]
[1749301712520,1.32036783,105460.0,105450.0,0.37896]
[1749301712729,0.04078298,105450.0,105440.0,0.48301367]
[1749301712935,1.09668601,105450.0,105440.0,0.95838104]
[1749301713146,1.09668629,105450.0,105440.0,0.57946104]
[1749301713354,1.09668621,105450.0,105440.0,0.95838104]
[1749301713560,1.10616865,105450.0,105440.0,0.9488977]
[1749301713827,1.09786778,105450.0,105440.0,0.85249822]
[1749301714025,1.11665094,105450.0,105440.0,0.85649822]
[1749301714703,1.13561688,105450.0,105440.0,0.84701479]
[1749301714918,1.11665119,105450.0,105440.0,0.85645822]
[1749301715188,1.11665127,105450.0,105440.0,0.85645822]
[1749301715369,1.11665125,105450.0,105440.0,0.85645822]
[1749301715575,1.12613423,105450.0,105440.0,0.85645822]
[1749301715783,0.83657962,105450.0,105440.0,0.45861127]
[1749301716013,0.81761431,105450.0,105440.0,0.83749127]
[1749301716150,0.81761431,105450.0,105440.0,0.47757858]
[1749301716366,1.35462014,105450.0,105440.0,0.62892789]
[1749301716560,1.33683645,105450.0,105440.0,0.82809328]
[1749301716792,1.35462091,105450.0,105440.0,0.83757725]
[1749301716992,1.34795181,105450.0,105440.0,0.84706104]
[1749301717188,1.33016731,105450.0,105440.0,0.84306104]
[1749301717564,1.34792197,105450.0,105440.0,0.84306104]
[1749301717774,1.34692197,105450.0,105440.0,0.84306104]
[1749301717971,1.32916731,105450.0,105440.0,0.84306104]
[1749301718173,1.34791345,105450.0,105440.0,0.84306104]
[1749301718535,1.33016731,105450.0,105440.0,0.84406104]
[1749301719141,1.34791345,105450.0,105440.0,0.84406104]
[1749301719591,1.33016731,105450.0,105440.0,0.84406104]
[1749301719797,1.33016731,105450.0,105440.0,0.85354474]
[1749301720008,1.34791345,105450.0,105440.0,0.83457725]
[1749301720209,1.32068433,105450.0,105440.0,0.84406113]
[1749301720422,1.33843052,105450.0,105440.0,0.84406113]
[1749301720631,1.32068433,105450.0,105440.0,0.84406113]
[1749301720842,1.32894736,105450.0,105440.0,0.62592789]
[1749301721060,1.32894737,105450.0,105440.0,0.83457725]
[1749301721281,1.31120117,105450.0,105440.0,0.83457725]
[1749301721474,1.32894736,105450.0,105440.0,0.83457725]
[1749301721890,1.31120117,105450.0,105440.0,0.83457725]
[1749301722101,1.32894736,105450.0,105440.0,0.83457725]
[1749301722307,0.59946455,105450.0,105440.0,0.84406104]
[1749301722547,0.07034711,105450.0,105440.0,0.86302817]
[1749301722737,0.56938333,105450.0,105440.0,0.86302817]
[1749301722944,0.59661219,105450.0,105440.0,0.86302817]
[1749301723159,0.82845923,105450.0,105440.0,0.83457707]
[1749301723583,0.81071317,105450.0,105440.0,0.84406077]
[1749301723807,0.63879571,105450.0,105440.0,0.8535442]
[1749301724013,0.62919682,105450.0,105440.0,0.8535442]
[1749301724254,0.07041148,105450.0,105440.0,0.84406077]
[1749301724471,0.61971393,105450.0,105440.0,0.8535442]
[1749301724912,0.62919694,105450.0,105440.0,0.8630279]
[1749301725153,0.62919685,105450.0,105440.0,0.86302727]
[1749301725382,0.61145094,105450.0,105440.0,0.86302727]
[1749301725589,0.6209341,105450.0,105440.0,0.86302727]
[1749301726009,0.80111482,105450.0,105440.0,0.85354384]
[1749301726220,0.81886088,105450.0,105440.0,0.85354384]
[1749301726460,0.81886088,105450.0,105440.0,0.86302727]
[1749301726896,0.81886088,105450.0,105440.0,0.84406032]
[1749301727308,0.81886088,105450.0,105440.0,0.85354384]
[1749301727952,0.61972575,105450.0,105440.0,0.85354384]
[1749301728159,0.81887225,105450.0,105440.0,0.85354384]
[1749301729840,0.61145148,105450.0,105440.0,0.85354384]
[1749301730048,0.62920891,105450.0,105440.0,0.85354384]
[1749301730275,0.62920891,105450.0,105440.0,0.86302727]
[1749301730561,0.61972521,105450.0,105440.0,0.86302727]
[1749301730769,0.79163112,105450.0,105440.0,0.85354384]
[1749301731189,0.80939284,105450.0,105440.0,0.85354384]
[1749301731607,0.26957337,105450.0,105440.0,0.85354384]
[1749301731817,0.62921254,105450.0,105440.0,0.86302727]
[1749301732020,0.61145085,105450.0,105440.0,0.86302727]
[1749301732230,0.82835904,105450.0,105440.0,0.84406032]
[1749301732431,0.81887651,105450.0,105440.0,0.84406032]
[1749301732868,0.60196778,105450.0,105440.0,0.85354375]
[1749301733084,0.62639062,105450.0,105440.0,0.85354375]
[1749301733288,0.60196778,105450.0,105440.0,0.85354375]
[1749301733716,0.62643289,105450.0,105440.0,0.85354375]
[1749301734134,0.63591596,105450.0,105440.0,0.85354375]
[1749301734334,0.63591577,105450.0,105440.0,0.85354375]
[1749301734543,0.61812296,105450.0,105440.0,0.85354375]
[1749301734746,0.63591527,105450.0,105440.0,0.85354375]
[1749301734971,0.61812296,105450.0,105440.0,0.85354375]
[1749301735275,0.61812289,105450.0,105440.0,0.85354375]
[1749301735586,0.63591501,105450.0,105440.0,0.85354375]
[1749301736095,0.61812289,105450.0,105440.0,0.85354375]
[1749301736298,0.63591501,105450.0,105440.0,0.85354375]
[1749301736679,0.83506151,105450.0,105440.0,0.84406032]
[1749301736883,0.81059735,105450.0,105440.0,0.85354384]
[1749301737091,0.83506151,105450.0,105440.0,0.85354384]
[1749301737608,0.81059735,105450.0,105440.0,0.85354384]
[1749301737837,0.83506151,105450.0,105440.0,0.85354384]
[1749301738050,0.82557898,105450.0,105440.0,0.84406032]
[1749301738256,0.82557899,105450.0,105440.0,0.84406032]
[1749301738492,0.82561899,105450.0,105440.0,0.84406032]
[1749301739385,0.82561913,105450.0,105440.0,0.84406032]
[1749301739600,0.80115482,105450.0,105440.0,0.84406032]
[1749301739816,0.62647268,105450.0,105440.0,0.85354384]
[1749301740035,0.60868042,105450.0,105440.0,0.85354384]
[1749301740253,0.61698916,105450.0,105440.0,0.86302727]
[1749301740476,0.58560778,105450.0,105440.0,0.86302727]
[1749301740695,0.61007214,105450.0,105440.0,0.86302727]
[1749301741157,0.63585521,105450.0,105440.0,0.86302727]
[1749301741359,0.82551855,105450.0,105440.0,0.85354384]
[1749301741643,0.63585521,105450.0,105440.0,0.86302727]
[1749301741865,0.56532383,105450.0,105440.0,0.86302727]
[1749301742067,0.58428765,105450.0,105440.0,0.99052675]
[1749301742272,0.5570136,105450.0,105440.0,0.99052675]
[1749301742479,0.57761583,105450.0,105440.0,0.99052675]
[1749301742686,0.55982444,105450.0,105440.0,0.99052675]
[1749301742840,0.57761559,105450.0,105440.0,0.99052675]
[1749301743246,0.5776155,105450.0,105440.0,0.99052675]
[1749301743675,0.55865063,105450.0,105440.0,0.99052675]
[1749301743834,0.01883116,105450.0,105440.0,0.99052675]
[1749301744070,0.55865063,105450.0,105440.0,0.99052675]
[1749301744781,0.54085947,105450.0,105440.0,0.99052675]
[1749301744958,0.55863933,105450.0,105440.0,0.99052675]
[1749301745408,0.01881986,105450.0,105440.0,0.99052675]
[1749301745627,0.01881985,105450.0,105440.0,0.99052675]
[1749301746033,0.00104,105450.0,105440.0,0.99052675]
[1749301746238,0.01881985,105450.0,105440.0,0.99052675]
[1749301747384,0.00104,105450.0,105440.0,0.99052675]
[1749301747590,0.01880566,105450.0,105440.0,0.99052675]
[1749301747806,0.01880565,105450.0,105440.0,0.99052675]
[1749301748491,0.01880614,105450.0,105440.0,0.97542675]
[1749301749429,0.00104,105450.0,105440.0,0.97542675]
[1749301749660,0.01880614,105450.0,105440.0,0.97542675]
[1749301750342,0.01880623,105450.0,105440.0,0.97542675]
[1749301750644,0.01880614,105450.0,105440.0,0.97542675]
[1749301750849,0.00104,105450.0,105440.0,0.97542675]
[1749301751500,0.01880621,105450.0,105440.0,0.97542675]
[1749301752014,0.02828856,105450.0,105440.0,0.97542675]
[1749301752264,0.01880621,105450.0,105440.0,0.95942675]
[1749301752725,0.01880451,105450.0,105440.0,0.95942675]
[1749301752947,0.01880459,105450.0,105440.0,0.95930675]
[1749301753161,0.02828694,105450.0,105440.0,0.95930675]
[1749301753400,0.01880457,105450.0,105440.0,0.95930675]
[1749301753626,0.00104,105450.0,105440.0,0.95930675]
[1749301753847,0.00104,105450.0,105440.0,0.99190675]
[1749301754065,0.01880411,105450.0,105440.0,0.98242675]
[1749301754730,0.01880294,105450.0,105440.0,0.98242675]
[1749301756694,0.01880246,105450.0,105440.0,0.98242675]
[1749301756915,0.00104,105450.0,105440.0,0.98242675]
[1749301757166,0.01880245,105450.0,105440.0,0.98242675]
[1749301757379,0.01880252,105450.0,105440.0,0.98242675]
[1749301757598,0.00104,105450.0,105440.0,0.98242675]
[1749301757808,0.01880252,105450.0,105440.0,0.98242675]
[1749301758471,0.01052235,105450.0,105440.0,0.96602675]
[1749301758742,0.01880333,105450.0,105440.0,0.94982675]
[1749301758957,0.00104,105450.0,105440.0,0.94982675]
[1749301759177,0.01880334,105450.0,105440.0,0.94982675]
[1749301759403,0.00104,105450.0,105440.0,0.94982675]
[1749301759661,0.01880334,105450.0,105440.0,0.94982675]
[1749301759872,0.00104,105450.0,105440.0,0.94982675]
[1749301760089,0.01880334,105450.0,105440.0,0.94982675]
[1749301760315,0.01880463,105450.0,105440.0,0.94982675]
[1749301762217,0.01880665,105450.0,105440.0,0.94982675]
[1749301762448,0.00104,105450.0,105440.0,0.94982675]
[1749301762933,0.01880642,105450.0,105440.0,0.94982675]
[1749301763188,0.01880637,105450.0,105440.0,0.94982675]
[1749301763609,0.00104,105450.0,105440.0,0.94982675]
[1749301763819,0.01881175,105450.0,105440.0,0.94982675]
[1749301764030,0.00104,105450.0,105440.0,0.94982675]
[1749301764462,0.01881175,105450.0,105440.0,0.94982675]
[1749301765329,0.01881305,105450.0,105440.0,0.94982675]
[1749301765553,0.00104,105450.0,105440.0,0.94982675]
[1749301766008,0.01881305,105450.0,105440.0,0.94982675]
[1749301766263,0.00104,105450.0,105440.0,0.94982675]
[1749301766486,0.01881305,105450.0,105440.0,0.94982675]
[1749301766941,0.00104,105450.0,105440.0,0.94982675]
[1749301767200,0.01881305,105450.0,105440.0,0.94982675]
[1749301768733,0.01881413,105450.0,105440.0,0.94982675]
[1749301769159,0.01882396,105450.0,105440.0,0.94982675]
[1749301769868,0.0188237,105450.0,105440.0,0.94982675]
[1749301770910,0.00104,105450.0,105440.0,0.94982675]
[1749301771362,0.01882347,105450.0,105440.0,0.94982675]
[1749301771874,0.01882347,105450.0,105440.0,0.94978675]
[1749301772756,0.01882354,105450.0,105440.0,0.94978675]
[1749301772962,0.00104,105450.0,105440.0,0.94978675]
[1749301773142,0.01882354,105450.0,105440.0,0.94978675]
[1749301773359,0.00104,105450.0,105440.0,0.94978675]
[1749301773558,0.01882354,105450.0,105440.0,0.94978675]
[1749301774852,0.00104,105450.0,105440.0,0.94978675]
[1749301775063,0.01882744,105450.0,105440.0,0.94978675]
[1749301775826,0.01882744,105450.0,105440.0,0.96568675]
[1749301776046,0.01882744,105450.0,105440.0,1.52207471]
[1749301776267,0.00104,105450.0,105440.0,0.98208675]
[1749301783072,0.00104,105450.0,105440.0,0.96568675]
[1749301788073,0.00104,105450.0,105440.0,0.94978675]
[1749301788298,0.00104,105450.0,105440.0,2.06166267]
[1749301788530,0.00104,105450.0,105440.0,1.52167471]
[1749301788749,0.00104,105450.0,105440.0,1.55016971]
[1749301789436,4e-05,105450.0,105440.0,1.55016971]
[1749301789958,0.00104,105450.0,105440.0,1.55016971]
[1749301791047,0.00104,105450.0,105440.0,1.55216971]
[1749301791733,0.00104,105450.0,105440.0,2.43215767]
[1749301791963,0.00104,105450.0,105440.0,2.5075608]
[1749301792394,0.00104,105450.0,105440.0,2.57210165]
[1749301792611,4e-05,105450.0,105440.0,2.57210165]
[1749301792821,0.00104,105450.0,105440.0,2.57510165]
[1749301793237,0.00104,105450.0,105440.0,2.19438165]
[1749301793442,0.00104,105450.0,105440.0,2.57602165]
[1749301795660,0.01104,105450.0,105440.0,2.57602165]
[1749301798251,0.01104,105450.0,105440.0,2.57621078]
[1749301801270,0.01104,105450.0,105440.0,2.50061852]
[1749301801713,0.01104,105450.0,105440.0,1.4206426]
[1749301801905,0.01104,105450.0,105440.0,2.57616043]
[1749301802340,0.01104,105450.0,105440.0,2.13301958]
[1749301802548,0.01104,105450.0,105440.0,2.51161958]
[1749301810713,0.01104,105450.0,105440.0,2.49621958]
[1749301810928,0.01104,105450.0,105440.0,2.51221958]
[1749301815639,0.01104,105450.0,105440.0,2.78549958]
[1749301817376,0.01104,105450.0,105440.0,2.70991767]
[1749301819781,0.01104,105450.0,105440.0,2.69391767]
[1749301819980,0.01104,105450.0,105440.0,2.68443767]
[1749301820934,0.01104,105450.0,105440.0,2.77759122]
[1749301821353,0.00931322,105450.0,105440.0,2.79399122]
[1749301821567,0.00786994,105450.0,105440.0,2.79399122]
[1749301825783,0.00786994,105450.0,105440.0,2.79399122]
[1749301826010,0.00786994,105450.0,105440.0,2.85853207]
[1749301826224,0.10667581,105470.0,105460.0,0.21809106]
[1749301826432,0.10667581,105470.0,105460.0,1.01895632]
[1749301826843,0.10667581,105470.0,105460.0,0.9432385]
[1749301827054,0.10667581,105470.0,105460.0,0.9717255]
[1749301827908,0.10667581,105470.0,105460.0,1.51171346]
[1749301828116,0.03104,105470.0,105460.0,1.51171346]
[1749301828328,0.03204,105470.0,105460.0,0.97286479]
[1749301828745,0.03104,105470.0,105460.0,0.97086479]
[1749301828954,0.03204,105470.0,105460.0,0.97486479]
[1749301829165,0.03204,105470.0,105460.0,0.97686479]
[1749301829369,0.03204,105470.0,105460.0,1.54575248]
[1749301829788,0.00104,105470.0,105460.0,1.54575248]
[1749301830894,0.00104,105470.0,105460.0,1.88575248]
[1749301831098,0.00104,105470.0,105460.0,1.34576452]
[1749301831547,0.00104,105470.0,105460.0,1.88575248]
[1749301834581,0.00104,105470.0,105460.0,1.96135841]
[1749301835218,0.0306,105490.0,105480.0,0.55804973]
[1749301835492,0.03064,105500.0,105490.0,0.21802906]
[1749301835700,0.03064,105500.0,105490.0,0.8544165]
[1749301836537,0.03068789,105500.0,105490.0,0.8828965]
[1749301837388,0.03068789,105500.0,105490.0,0.34390854]
[1749301837598,0.03068789,105500.0,105490.0,0.35325747]
[1749301838235,0.03068789,105500.0,105490.0,0.89356482]
[1749301839861,0.03068789,105500.0,105490.0,0.73261747]
[1749301843238,0.03068789,105500.0,105490.0,0.35425747]
[1749301843456,0.03068789,105500.0,105490.0,0.73261747]
[1749301846365,0.03068789,105500.0,105490.0,1.27192482]
[1749301849183,8.789e-05,105500.0,105490.0,1.27192482]
[1749301849606,8.789e-05,105500.0,105490.0,1.28762482]
[1749301850592,8.789e-05,105500.0,105490.0,1.27192482]
[1749301851029,8.789e-05,105500.0,105490.0,1.28762482]
[1749301851476,8.789e-05,105500.0,105490.0,1.27192482]
[1749301855278,8.789e-05,105500.0,105490.0,1.54508482]
[1749301857348,8.789e-05,105500.0,105490.0,1.54503497]
[1749301859814,8.789e-05,105500.0,105490.0,1.88503497]
[1749301860646,8.789e-05,105500.0,105490.0,1.90103497]
[1749301860899,8.789e-05,105500.0,105490.0,1.97653927]
[1749301861541,8.789e-05,105500.0,105490.0,1.96053927]
[1749301865240,8.789e-05,105500.0,105490.0,1.97673927]
[1749301865479,8.789e-05,105500.0,105490.0,1.99128012]
[1749301865729,8.789e-05,105500.0,105490.0,2.61468133]
[1749301865941,0.03278,105520.0,105510.0,0.21798772]
[1749301866164,0.03282795,105520.0,105510.0,1.3073985]
[1749301866468,0.00012795,105520.0,105510.0,2.20119685]
[1749301866708,0.00012795,105520.0,105510.0,2.22966785]
[1749301866909,0.00012795,105520.0,105510.0,2.24586785]
[1749301867347,0.00012795,105520.0,105510.0,2.26106785]
[1749301867568,0.00012795,105520.0,105510.0,2.31106785]
[1749301868030,0.00012795,105520.0,105510.0,2.31306785]
[1749301868477,0.00012795,105520.0,105510.0,2.31506785]
[1749301869339,0.00012795,105520.0,105510.0,2.31433237]
[1749301870455,0.00012795,105520.0,105510.0,2.38323082]
[1749301870674,1e-08,105520.0,105510.0,2.38323082]
[1749301871125,1e-08,105520.0,105510.0,2.38123082]
[1749301871349,1e-08,105520.0,105510.0,2.37923082]
[1749301871562,1e-08,105520.0,105510.0,2.38223082]
[1749301871836,1e-08,105520.0,105510.0,2.38623082]
[1749301872294,1e-08,105520.0,105510.0,2.70807082]
[1749301872508,1e-08,105520.0,105510.0,1.76291129]
[1749301872726,0.03100001,105520.0,105510.0,1.64353044]
[1749301872962,0.03100001,105520.0,105510.0,1.73213044]
[1749301873173,0.03100001,105520.0,105510.0,1.78213044]
[1749301873391,0.03100001,105520.0,105510.0,1.79667129]
[1749301873828,0.03100001,105520.0,105510.0,1.34328881]
[1749301874093,0.03100001,105520.0,105510.0,1.72136881]
[1749301874310,0.03100001,105520.0,105510.0,1.67136881]
[1749301874522,0.03100001,105520.0,105510.0,1.72136881]
[1749301874959,0.03100001,105520.0,105510.0,1.71836881]
[1749301875181,0.03100001,105520.0,105510.0,1.71536881]
[1749301875395,0.03100001,105520.0,105510.0,1.71636881]
[1749301876749,0.03100001,105520.0,105510.0,1.71611299]
[1749301877000,0.03100001,105520.0,105510.0,1.33803299]
[1749301877221,0.03100001,105520.0,105510.0,1.71611299]
[1749301877438,0.03100001,105520.0,105510.0,1.33803299]
[1749301877654,0.03100001,105520.0,105510.0,1.71611299]
[1749301877850,0.01540001,105520.0,105510.0,1.71611299]
[1749301880914,0.03120001,105520.0,105510.0,1.71611299]
[1749301881133,0.03120001,105520.0,105510.0,1.66611299]
[1749301881345,0.03120001,105520.0,105510.0,1.71611299]
[1749301883713,0.03120001,105520.0,105510.0,1.79144211]
[1749301884363,0.03120001,105520.0,105510.0,0.7599315]
[1749301884581,0.03120001,105520.0,105510.0,0.68460238]
[1749301884797,0.03120001,105520.0,105510.0,1.06264238]
[1749301885005,0.03120001,105520.0,105510.0,0.68460238]
[1749301885214,0.03120001,105520.0,105510.0,1.06264238]
[1749301885686,0.03120001,105520.0,105510.0,1.60153214]
[1749301885906,0.03120001,105520.0,105510.0,1.59205214]
[1749301886540,0.03120001,105520.0,105510.0,1.60152928]
[1749301887853,0.03120001,105520.0,105510.0,1.06263952]
[1749301889374,0.03120001,105520.0,105510.0,1.60152928]
[1749301890836,0.03120001,105520.0,105510.0,1.84728928]
[1749301893236,0.03120001,105520.0,105510.0,1.9226184]
[1749301895426,0.03120001,105520.0,105510.0,1.5445784]
[1749301895633,0.03120001,105520.0,105510.0,1.9224984]
[1749301896689,0.03120001,105520.0,105510.0,1.5445784]
[1749301896900,0.03120001,105520.0,105510.0,1.9224984]
[1749301897572,0.03120001,105520.0,105510.0,1.5445784]
[1749301897795,0.03120001,105520.0,105510.0,1.9224984]
[1749301900081,0.03120001,105520.0,105510.0,1.5445784]
[1749301900299,0.03120001,105520.0,105510.0,1.9224984]
[1749301908333,0.03120001,105520.0,105510.0,2.1955784]
[1749301914614,0.03120001,105520.0,105510.0,1.65668864]
[1749301914836,0.03120001,105520.0,105510.0,2.1955784]
[1749301918030,1e-08,105520.0,105510.0,2.12024928]
[1749301918264,1e-08,105520.0,105510.0,2.21474153]
[1749301925439,0.03120001,105520.0,105510.0,2.21474153]
[1749301926774,0.03120001,105520.0,105510.0,2.12024928]
[1749301926993,0.03120001,105520.0,105510.0,2.19586137]
[1749301927357,0.03120001,105520.0,105510.0,2.19599414]
[1749301927578,1e-08,105520.0,105510.0,2.19599414]
[1749301927786,1e-08,105520.0,105510.0,2.12038205]
[1749301928423,1e-08,105520.0,105510.0,2.67550458]
[1749301928637,1e-08,105520.0,105510.0,2.85083768]
[1749301928918,1e-08,105520.0,105510.0,2.90083768]
[1749301929135,0.1,105530.0,105520.0,1.29601211]
[1749301929350,0.10047961,105530.0,105520.0,1.48687992]
[1749301929794,0.13087961,105530.0,105520.0,0.51285874]
[1749301930053,0.13087961,105530.0,105520.0,0.84691041]
[1749301930287,0.13087961,105530.0,105520.0,1.06059553]
[1749301941504,0.13087961,105530.0,105520.0,1.30635553]
[1749301946311,0.13087961,105530.0,105520.0,1.57943553]
[1749301949358,0.10047961,105530.0,105520.0,2.11850319]
[1749301949564,0.10047961,105530.0,105520.0,2.19405807]
[1749301950645,0.10047961,105530.0,105520.0,2.20985807]
[1749301950848,0.10047961,105530.0,105520.0,2.23772539]
[1749301952014,0.10047961,105530.0,105520.0,2.22824539]
[1749301952435,0.10047961,105530.0,105520.0,2.23772163]
[1749301954359,0.10047961,105530.0,105520.0,2.22192163]
[1749301955426,0.10047961,105530.0,105520.0,2.76073523]
[1749301955843,0.10047961,105530.0,105520.0,2.2217946]
[1749301961188,0.13107961,105530.0,105520.0,2.2217146]
[1749301961403,0.13107961,105530.0,105520.0,2.14615972]
[1749301961643,0.13107961,105530.0,105520.0,2.14611972]
[1749301963838,0.10047961,105530.0,105520.0,1.78027482]
[1749301964063,4e-05,105550.0,105540.0,0.55792577]
[1749301964291,0.00013086,105550.0,105540.0,1.73220651]
[1749301964504,0.00013086,105550.0,105540.0,0.74642629]
[1749301964722,0.00013086,105550.0,105540.0,1.85277255]
[1749301964951,0.00013086,105550.0,105540.0,1.86917255]
[1749301965445,0.00013086,105550.0,105540.0,1.32998926]
[1749301965665,0.00013086,105550.0,105540.0,1.31458926]
[1749301966933,0.00013086,105550.0,105540.0,1.33098926]
[1749301967367,0.00013086,105550.0,105540.0,0.79229129]
[1749301967588,0.00013086,105550.0,105540.0,1.33098926]
[1749301967809,0.00013086,105550.0,105540.0,1.33198926]
[1749301969139,0.00013086,105550.0,105540.0,1.31558926]
[1749301969392,0.00013086,105550.0,105540.0,0.76029129]
[1749301969608,0.00013086,105550.0,105540.0,1.29898926]
[1749301970266,0.00013086,105550.0,105540.0,0.76029129]
[1749301970490,0.00013086,105550.0,105540.0,1.29898926]
[1749301978757,0.00013086,105550.0,105540.0,1.61774926]
[1749301979814,0.00013086,105550.0,105540.0,1.07905129]
[1749301980059,0.00013086,105550.0,105540.0,1.61774926]
[1749301980934,0.00013086,105550.0,105540.0,1.72478926]
[1749301985304,0.01593086,105550.0,105540.0,1.72478926]
[1749301985726,0.03163086,105550.0,105540.0,1.72326926]
[1749301987304,0.03163086,105550.0,105540.0,2.26202815]
[1749301987739,0.03163086,105550.0,105540.0,2.50774815]
[1749301991234,0.03163086,105550.0,105540.0,1.43029129]
[1749301991457,0.02,105560.0,105550.0,0.31414596]
[1749301991674,0.02,105560.0,105550.0,0.89491789]
[1749301991894,0.02,105560.0,105550.0,0.92931769]
[1749301992117,0.02,105560.0,105550.0,2.04182707]
[1749301992622,0.02,105560.0,105550.0,2.74182707]
[1749301992848,0.02,105560.0,105550.0,2.77128407]
[1749301993075,0.02,105560.0,105550.0,2.07128407]
[1749301993301,0.02,105560.0,105550.0,1.49720285]
[1749301993761,0.02,105560.0,105550.0,1.49820285]
[1749301993974,0.02,105560.0,105550.0,1.49720285]
[1749301994119,0.02,105560.0,105550.0,1.49620285]
[1749301994332,0.02,105560.0,105550.0,1.50420285]
[1749301994521,0.02,105560.0,105550.0,1.45420285]
[1749301994726,0.02,105560.0,105550.0,1.50420285]
[1749301995164,0.02,105560.0,105550.0,0.96577469]
[1749301995373,0.02,105560.0,105550.0,1.50420285]
[1749301995591,0.02,105560.0,105550.0,1.45420285]
[1749301995806,0.02,105560.0,105550.0,1.50420285]
[1749301996642,0.02,105560.0,105550.0,1.45420285]
[1749301996843,0.02,105560.0,105550.0,1.50420285]
[1749301997258,0.02,105560.0,105550.0,1.77716285]
[1749301998308,0.02,105560.0,105550.0,2.47716285]
[1749301998734,0.02,105560.0,105550.0,2.42716285]
[1749301998962,0.02,105560.0,105550.0,2.47716285]
[1749301999705,0.02,105560.0,105550.0,2.3483906]
[1749302000345,0.02,105560.0,105550.0,2.2983906]
[1749302000552,0.02,105560.0,105550.0,2.3483906]
[1749302002152,0.02,105560.0,105550.0,2.2983906]
[1749302002362,0.08154,105580.0,105570.0,0.55786381]
[1749302002592,0.08154,105580.0,105570.0,1.59706498]
[1749302002593,0.08163083,105580.0,105570.0,1.59706498]
[1749302003032,0.08163083,105580.0,105570.0,1.73780198]
[1749302003505,0.08163083,105580.0,105570.0,2.28580985]
[1749302003506,0.05013083,105580.0,105570.0,2.28580985]
[1749302003713,0.05013083,105580.0,105570.0,1.74838169]
[1749302004166,0.05013083,105580.0,105570.0,1.74938169]
[1749302004383,0.08263083,105580.0,105570.0,1.74938169]
[1749302007349,0.08263083,105580.0,105570.0,1.74738169]
[1749302014102,0.08263083,105580.0,105570.0,1.20675353]
[1749302014321,0.08263083,105580.0,105570.0,1.20667353]
[1749302014768,0.08263083,105580.0,105570.0,0.6943]
[1749302014975,0.08263083,105580.0,105570.0,1.13134]
[1749302015196,0.08263083,105580.0,105570.0,1.66968816]
[1749302015407,0.08263083,105580.0,105570.0,1.74494169]
[1749302015844,0.08263083,105580.0,105570.0,1.20651353]
[1749302016056,0.08263083,105580.0,105570.0,1.74494169]
[1749302016702,0.08263083,105580.0,105570.0,1.74498169]
[1749302016917,0.08263083,105580.0,105570.0,1.20655353]
[1749302017943,0.08263083,105580.0,105570.0,1.19708178]
[1749302018106,0.08263083,105580.0,105570.0,1.73550994]
[1749302018307,0.08263083,105580.0,105570.0,1.74498169]
[1749302020301,0.08263083,105580.0,105570.0,1.66972816]
[1749302020754,0.08263083,105580.0,105570.0,2.00943508]
[1749302021196,0.08263083,105580.0,105570.0,1.57243508]
[1749302021421,0.08263083,105580.0,105570.0,1.12616692]
[1749302021635,0.08263083,105580.0,105570.0,1.10760453]
[1749302021854,0.10038572,105580.0,105570.0,1.10744453]
[1749302022077,0.08263083,105580.0,105570.0,1.10744453]
[1749302022300,0.10038605,105580.0,105570.0,1.10744453]
[1749302022515,0.08263083,105580.0,105570.0,1.03194]
[1749302022736,0.10038605,105580.0,105570.0,1.03194]
[1749302022982,0.08263083,105580.0,105570.0,1.03194]
[1749302024913,0.08263083,105580.0,105570.0,1.08853431]
[1749302025329,0.08263083,105580.0,105570.0,1.03194]
[1749302025556,0.08263083,105580.0,105570.0,1.08928626]
[1749302036355,0.08263083,105580.0,105570.0,1.0327]
[1749302037444,0.08263083,105580.0,105570.0,1.57120544]
[1749302037875,0.08263083,105580.0,105570.0,1.64670997]
[1749302038088,0.08263083,105580.0,105570.0,1.57120544]
[1749302038788,0.08263083,105580.0,105570.0,1.64670997]
[1749302039446,0.08263083,105580.0,105570.0,1.10820453]
[1749302041858,0.05013083,105580.0,105570.0,1.64671245]
[1749302042326,0.05013083,105580.0,105570.0,1.10464453]
[1749302042554,0.08213083,105580.0,105570.0,1.10464453]
[1749302047371,0.08213083,105580.0,105570.0,0.67544453]
[1749302047591,0.08213083,105580.0,105570.0,1.10564453]
[1749302059308,0.08213083,105580.0,105570.0,1.64415113]
[1749302059764,0.08213083,105580.0,105570.0,1.64279396]
[1749302060203,0.08213083,105580.0,105570.0,1.64277581]
[1749302060381,0.08213083,105580.0,105570.0,1.56728943]
[1749302060592,0.08213083,105580.0,105570.0,1.98277911]
[1749302065122,0.08213083,105580.0,105570.0,1.97885911]
[1749302065329,0.08213083,105580.0,105570.0,1.44035251]
[1749302067449,0.08213083,105580.0,105570.0,1.01407251]
[1749302067859,0.08213083,105580.0,105570.0,1.43787251]
[1749302068271,0.09213083,105580.0,105570.0,1.43687251]
[1749302068475,0.09213083,105580.0,105570.0,1.36038283]
[1749302068709,0.09313083,105580.0,105570.0,1.36038283]
[1749302069352,0.09313083,105580.0,105570.0,1.41703016]
[1749302069557,0.09313083,105580.0,105570.0,1.36038283]
[1749302070238,0.09313083,105580.0,105570.0,1.4170311]
[1749302070659,0.09313083,105580.0,105570.0,1.41702455]
[1749302071073,0.09313083,105580.0,105570.0,1.41702481]
[1749302071283,0.09313083,105580.0,105570.0,1.41701977]
[1749302071490,0.09313083,105580.0,105570.0,0.93658283]
[1749302071712,0.09313083,105580.0,105570.0,1.35942283]
[1749302071949,0.09313083,105580.0,105570.0,1.4160595]
[1749302072201,0.09313083,105580.0,105570.0,1.35942283]
[1749302072426,0.09313083,105580.0,105570.0,1.41605597]
[1749302074155,0.09313083,105580.0,105570.0,1.95456257]
[1749302074587,0.06113083,105580.0,105570.0,1.89792943]
[1749302075230,0.06113083,105580.0,105570.0,1.95455525]
[1749302076793,0.06113083,105580.0,105570.0,1.97341911]